fUSD/lending_fUSD_20250117
["ID","MTS","AMOUNT","RATE_DAILY","PERIOD"]
[349271321,1737087047264,-2599.0,0.00027623,7]
[349271323,1737087047274,-516.0,0.00027651,7]
[349271325,1737087047285,-500.0,0.00027651,7]
[349271327,1737087047294,-2599.0,0.00027651,7]
[349271329,1737087047304,-166.57,0.00027671,30]
[349271331,1737087047314,-516.0,0.00027678,7]
[349271333,1737087047323,-500.0,0.00027678,7]
[349271335,1737087047332,-2599.0,0.00027678,7]
[349271337,1737087047342,-200.0,0.00027678,2]
[349271339,1737087047352,-200.0,0.00027682,120]
[349271341,1737087047362,-516.0,0.00027705,7]
[349271343,1737087047371,-500.0,0.00027705,7]
[349271345,1737087047381,-2599.0,0.00027705,7]
[349271347,1737087047391,-516.0,0.00027733,7]
[349271349,1737087047400,-500.0,0.00027733,7]
[349271351,1737087047411,-2599.0,0.00027733,7]
[349271354,1737087047421,-516.0,0.0002776,7]
[349271356,1737087047432,-500.0,0.0002776,7]
[349271357,1737087047443,-2599.0,0.0002776,7]
[349271359,1737087047452,-516.0,0.00027788,7]
[349271361,1737087047462,-500.0,0.00027788,7]
[349271364,1737087047472,-2599.0,0.00027788,7]
[349271366,1737087047482,-229.0,0.00027798,2]
[349271367,1737087047491,-150.196,0.00027798,2]
[349271369,1737087047500,-200.0,0.00027798,2]
[349271371,1737087047510,-155.275,0.00027798,2]
[349271373,1737087047520,-150.0,0.00027798,2]
[349271375,1737087047529,-159.063,0.00027798,2]
[349271377,1737087047539,-250.0,0.00027798,2]
[349271379,1737087047548,-165.666,0.00027798,2]
[349271381,1737087047557,-150.0,0.00027798,2]
[349271383,1737087047566,-250.0,0.00027798,2]
[349271385,1737087047576,-218.105,0.00027798,2]
[349271387,1737087047586,-252.142,0.00027798,2]
[349271389,1737087047595,-153.223,0.00027798,2]
[349271391,1737087047604,-169.894,0.00027798,2]
[349271393,1737087047614,-2017.0,0.00027798,2]
[349271395,1737087047623,-1277.985,0.00027798,2]
[349271397,1737087047633,-576.313,0.00027798,2]
[349271399,1737087047642,-635.0,0.00027798,2]
[349271401,1737087047652,-152.197,0.00027798,2]
[349271403,1737087047662,-1862.0,0.00027798,2]
[349271405,1737087047671,-197.3719439,0.00027806,2]
[349271407,1737087047681,-166.57,0.00027808,30]
[349271409,1737087047691,-516.0,0.00027815,7]
[349271411,1737087047701,-500.0,0.00027815,7]
[349271413,1737087047710,-2599.0,0.00027815,7]
[349271415,1737087047719,-500.0,0.00027816,120]
[349271417,1737087047729,-516.0,0.00027842,7]
[349271419,1737087047738,-500.0,0.00027842,7]
[349271421,1737087047749,-2599.0,0.00027842,7]
[349271423,1737087047758,-250.0,0.00027843,3]
[349271425,1737087047767,-516.0,0.0002787,7]
[349271427,1737087047777,-630.03359122,0.0002787,7]
[349271429,1737087047786,-2599.0,0.0002787,7]
[349271431,1737087047796,-516.0,0.00027897,7]
[349271433,1737087047806,-2599.0,0.00027897,7]
[349271435,1737087047815,-4139.65913737,0.000279,30]
[349271437,1737087047825,-1000.0,0.00027921,5]
[349271439,1737087047835,-447.32756164,0.00027921,5]
[349271441,1737087047845,-1000.0,0.00027921,5]
[349271443,1737087047857,-688.07113796,0.00027921,5]
[349271445,1737087047869,-532.9193025,0.00027925,7]
[349271447,1737087047879,-2608.4175834,0.00027925,7]
[349271449,1737087047890,-166.57,0.00027945,30]
[349271451,1737087047900,-243.44605674,0.00027952,2]
[349271453,1737087047924,-200.0,0.00027955,2]
[349271455,1737087047939,-276.17691318,0.00027975,2]
[349271457,1737087047951,-898.65,0.00028,31]
[349271459,1737087047969,-1000.0,0.00028021,5]
[349271461,1737087047984,-736.84668177,0.00028021,5]
[349271463,1737087048201,-1000.69131977,0.00028021,5]
[349271465,1737087048211,-166.57,0.00028082,30]
[349271467,1737087048220,-325.27525461,0.00028089,2]
[349271469,1737087048230,-884.35,0.00028113,3]
[349271471,1737087048240,-734.25,0.00028113,3]
[349271474,1737087048250,-1407.11,0.00028113,3]
[349271476,1737087048260,-1206.65,0.00028113,3]
[349271478,1737087048270,-2421.4,0.00028113,3]
[349271479,1737087048280,-766.26,0.00028114,3]
[349271482,1737087048290,-675.79,0.00028114,3]
[349271484,1737087048300,-500.0,0.00028114,3]
[349271485,1737087048310,-505.42,0.00028114,3]
[349271488,1737087048320,-500.0,0.00028114,3]
[349271489,1737087048330,-663.86,0.00028114,3]
[349271491,1737087048339,-1442.37,0.00028114,3]
[349271494,1737087048349,-1180.71,0.00028114,3]
[349271496,1737087048359,-389.29633261,0.00028114,3]
[349271498,1737087048369,-5904.41,0.00028114,3]
[349271500,1737087048379,-505.6,0.00028114,3]
[349271502,1737087048390,-519.08,0.00028114,3]
[349271504,1737087048400,-219.40786137,0.00028114,3]
[349271506,1737087048412,-1199.33,0.00028114,3]
[349271513,1737087048567,-2805.0,0.00028114,3]
[349271514,1737087048576,-2187.17,0.00028114,3]
[349271515,1737087048585,-185.722918,0.00028114,3]
[349271517,1737087048595,-1848.82,0.00028114,3]
[349271518,1737087048604,-1642.74,0.00028114,3]
[349271521,1737087048614,-1387.94,0.00028114,3]
[349271523,1737087048624,-1556.41,0.00028114,3]
[349271525,1737087048634,-507.31,0.00028114,3]
[349271527,1737087048643,-733.4,0.00028114,3]
[349271529,1737087048653,-1151.64,0.00028114,3]
[349271531,1737087048664,-683.31,0.00028114,3]
[349271533,1737087048674,-500.0,0.00028114,3]
[349271535,1737087048685,-5673.1,0.00028114,3]
[349271537,1737087048694,-500.0,0.00028114,3]
[349271539,1737087048705,-150.0,0.00028144,5]
[349271541,1737087048714,-500.0,0.00028217,3]
[349271543,1737087048724,-500.0,0.00028217,3]
[349271545,1737087048734,-500.0,0.00028217,3]
[349271547,1737087048744,-166.57,0.00028219,30]
[349271549,1737087048753,-771.32,0.00028219,2]
[349271551,1737087048763,-772.56,0.00028219,2]
[349271553,1737087048773,-152.41,0.00028219,2]
[349271555,1737087048783,-300.0,0.00028219,2]
[349271557,1737087048792,-200.0,0.00028234,2]
[349271559,1737087048802,-538.28,0.00028303,2]
[349271561,1737087048811,-150.0,0.00028343,2]
[349271563,1737087048821,-166.57,0.00028356,30]
[349271565,1737087048835,-235.0,0.0002836,2]
[349271567,1737087048845,-166.57,0.00028493,30]
[349271569,1737087048860,-243.44605674,0.00028606,2]
[349271571,1737087048870,-166.57,0.0002863,30]
[349271573,1737087048880,-276.17691318,0.00028654,2]
[349271575,1737087048891,-250.0,0.00028692,5]
[349271577,1737087048900,-1260.0,0.00028706,2]
[349271579,1737087048910,-820.0,0.00028706,2]
[349271581,1737087048920,-907.0,0.00028706,2]
[349271584,1737087048930,-2945.0,0.00028706,2]
[349271586,1737087048940,-537.0,0.00028706,2]
[349271587,1737087048950,-3981.0,0.00028706,2]
[349271589,1737087048960,-166.57,0.00028767,30]
[349271592,1737087048970,-1000.0,0.0002883,2]
[349271594,1737087048980,-325.27525461,0.0002888,2]
[349271595,1737087048990,-166.57,0.00028904,30]
[349271598,1737087048999,-2500.0,0.00028909,5]
[349271600,1737087049009,-2500.0,0.00028909,5]
[349271601,1737087049018,-500.0,0.00028916,120]
[349271603,1737087049028,-500.0,0.00028916,120]
[349271605,1737087049038,-500.0,0.00028916,120]
[349271607,1737087049048,-200.0,0.00028916,120]
[349271609,1737087049057,-500.75099524,0.00028922,5]
[349271611,1737087049067,-1500.0,0.00028922,5]
[349271613,1737087049076,-492.7,0.00028954,120]
[349271615,1737087049086,-728.915077,0.00029,120]
[349271617,1737087049095,-600.0,0.00029,2]
[349271619,1737087049105,-1500.0,0.00029022,5]
[349271621,1737087049114,-166.57,0.00029041,30]
[349271623,1737087049124,-150.0,0.00029041,2]
[349271624,1737087049134,-166.57,0.00029178,30]
[349271625,1737087049143,-772.46,0.00029178,2]
[349271626,1737087049152,-500.0,0.00029215,3]
[349271627,1737087049163,-1189.31,0.00029215,3]
[349271628,1737087049172,-563.11,0.00029215,3]
[349271629,1737087049182,-500.0,0.00029215,3]
[349271630,1737087049193,-1029.5,0.00029215,3]
[349271631,1737087049203,-2692.93,0.00029215,3]
[349271632,1737087049212,-500.0,0.00029215,3]
[349271633,1737087049222,-1128.1,0.00029215,3]
[349271634,1737087049231,-619.62,0.00029215,3]
[349271635,1737087049240,-1521.93,0.00029215,3]
[349271636,1737087049250,-827.9,0.00029215,3]
[349271637,1737087049260,-2052.13,0.00029215,3]
[349271638,1737087049269,-1095.69,0.00029215,3]
[349271639,1737087049279,-1920.48,0.00029215,3]
[349271640,1737087049289,-500.0,0.00029216,3]
[349271641,1737087049299,-150.0,0.0002922,120]
[349271642,1737087049308,-350.0,0.0002924,5]
[349271643,1737087049317,-235.0,0.0002928,2]
[349271644,1737087049328,-166.57,0.00029315,30]
[349271645,1737087049338,-276.17691318,0.00029332,2]
[349271646,1737087049347,-166.57,0.00029452,30]
[349271647,1737087049357,-426.74,0.00029482,120]
[349271648,1737087049366,-211.0,0.00029568,3]
[349271649,1737087049376,-166.57,0.00029589,30]
[349271650,1737087049385,-325.27525461,0.00029672,2]
[349271651,1737087049395,-2495.59,0.00029701,3]
[349271652,1737087049404,-166.57,0.00029726,30]
[349271653,1737087049414,-152.0,0.0002973,4]
[349271654,1737087049424,-335.94391781,0.00029788,5]
[349271655,1737087049434,-166.57,0.00029863,30]
[349271656,1737087049444,-1500.0,0.000299,10]
[349271657,1737087049454,-884.35,0.00029998,3]
[349271658,1737087049463,-734.25,0.00029998,3]
[349271659,1737087049473,-1407.11,0.00029998,3]
[349271660,1737087049483,-1206.65,0.00029998,3]
[349271661,1737087049493,-2421.4,0.00029998,3]
[349271662,1737087049502,-166.57,0.00029999,30]
[349271663,1737087049512,-500.0,0.00029999,2]
[349271664,1737087049522,-766.26,0.00029999,3]
[349271665,1737087049531,-766.26,0.00029999,3]
[349271666,1737087049541,-766.26,0.00029999,3]
[349271667,1737087049550,-675.79,0.00029999,3]
[349271668,1737087049560,-675.79,0.00029999,3]
[349271669,1737087049569,-675.79,0.00029999,3]
[349271670,1737087049579,-2495.59,0.00029999,3]
[349271671,1737087049588,-2495.59,0.00029999,3]
[349271672,1737087049598,-2495.59,0.00029999,3]
[349271673,1737087049608,-2495.59,0.00029999,3]
[349271674,1737087049618,-2495.59,0.00029999,3]
[349271675,1737087049627,-2495.59,0.00029999,3]
[349271676,1737087049636,-2495.59,0.00029999,3]
[349271677,1737087049646,-2495.64685694,0.00029999,3]
[349271678,1737087049656,-500.0,0.00029999,3]
[349271679,1737087049665,-500.0,0.00029999,3]
[349271680,1737087049674,-500.0,0.00029999,3]
[349271681,1737087049683,-505.42,0.00029999,3]
[349271682,1737087049693,-505.42,0.00029999,3]
[349271683,1737087049703,-505.42,0.00029999,3]
[349271684,1737087049712,-884.35,0.00029999,3]
[349271685,1737087049722,-884.35,0.00029999,3]
[349271686,1737087049732,-500.0,0.00029999,3]
[349271687,1737087049742,-500.0,0.00029999,3]
[349271688,1737087049752,-500.0,0.00029999,3]
[349271689,1737087049764,-663.86,0.00029999,3]
[349271690,1737087049774,-663.86,0.00029999,3]
[349271691,1737087049784,-663.86,0.00029999,3]
[349271692,1737087049794,-734.25,0.00029999,3]
[349271693,1737087049803,-734.25,0.00029999,3]
[349271694,1737087049814,-1442.37,0.00029999,3]
[349271695,1737087049823,-1442.37,0.00029999,3]
[349271696,1737087049834,-1442.37,0.00029999,3]
[349271697,1737087049843,-500.0,0.00029999,3]
[349271698,1737087049854,-500.0,0.00029999,3]
[349271699,1737087049867,-1180.71,0.00029999,3]
[349271700,1737087049878,-1180.71,0.00029999,3]
[349271701,1737087049887,-1180.71,0.00029999,3]
[349271702,1737087049898,-1407.11,0.00029999,3]
[349271703,1737087049910,-1407.11,0.00029999,3]
[349271704,1737087049919,-5904.41,0.00029999,3]
[349271705,1737087049929,-5904.41,0.00029999,3]
[349271706,1737087049941,-5904.41,0.00029999,3]
[349271707,1737087049952,-505.6,0.00029999,3]
[349271708,1737087049963,-505.6,0.00029999,3]
[349271709,1737087049973,-505.6,0.00029999,3]
[349271710,1737087049983,-519.08,0.00029999,3]
[349271711,1737087049993,-519.08,0.00029999,3]
[349271712,1737087050003,-519.08,0.00029999,3]
[349271713,1737087050014,-1199.33,0.00029999,3]
[349271714,1737087050025,-1199.33,0.00029999,3]
[349271715,1737087050035,-1199.33,0.00029999,3]
[349271716,1737087050045,-2805.0,0.00029999,3]
[349271717,1737087050054,-2805.0,0.00029999,3]
[349271718,1737087050063,-2805.0,0.00029999,3]
[349271719,1737087050073,-2187.17,0.00029999,3]
[349271720,1737087050082,-2187.17,0.00029999,3]
[349271721,1737087050091,-2187.17,0.00029999,3]
[349271722,1737087050100,-500.0,0.00029999,3]
[349271723,1737087050110,-500.0,0.00029999,3]
[349271724,1737087050119,-500.0,0.00029999,3]
[349271725,1737087050128,-500.0,0.00029999,3]
[349271726,1737087050137,-1848.82,0.00029999,3]
[349271727,1737087050146,-1848.82,0.00029999,3]
[349271728,1737087050156,-1848.82,0.00029999,3]
[349271729,1737087050165,-1189.31,0.00029999,3]
[349271730,1737087050175,-1189.31,0.00029999,3]
[349271731,1737087050184,-1642.74,0.00029999,3]
[349271732,1737087050194,-1189.31,0.00029999,3]
[349271733,1737087050203,-1642.74,0.00029999,3]
[349271734,1737087050212,-1642.74,0.00029999,3]
[349271735,1737087050222,-563.11,0.00029999,3]
[349271736,1737087050232,-563.11,0.00029999,3]
[349271737,1737087050242,-563.11,0.00029999,3]
[349271738,1737087050252,-500.0,0.00029999,3]
[349271739,1737087050262,-500.0,0.00029999,3]
[349271740,1737087050272,-343.2689945,0.00029999,3]
[349271741,1737087050282,-1029.5,0.00029999,3]
[349271742,1737087050291,-1387.94,0.00029999,3]
[349271743,1737087050300,-1029.5,0.00029999,3]
[349271744,1737087050310,-1387.94,0.00029999,3]
[349271745,1737087050319,-1387.94,0.00029999,3]
[349271746,1737087050329,-1029.5,0.00029999,3]
[349271747,1737087050340,-1206.65,0.00029999,3]
[349271748,1737087050349,-1206.65,0.00029999,3]
[349271749,1737087050358,-2692.93,0.00029999,3]
[349271750,1737087050368,-2692.93,0.00029999,3]
[349271751,1737087050378,-1556.41,0.00029999,3]
[349271752,1737087050387,-2692.93,0.00029999,3]
[349271753,1737087050397,-1556.41,0.00029999,3]
[349271754,1737087050408,-1556.41,0.00029999,3]
[349271755,1737087050417,-507.31,0.00029999,3]
[349271756,1737087050427,-507.31,0.00029999,3]
[349271757,1737087050438,-507.31,0.00029999,3]
[349271758,1737087050448,-733.4,0.00029999,3]
[349271759,1737087050457,-733.4,0.00029999,3]
[349271760,1737087050467,-733.4,0.00029999,3]
[349271761,1737087050477,-500.0,0.00029999,3]
[349271762,1737087050486,-500.0,0.00029999,3]
[349271763,1737087050498,-500.0,0.00029999,3]
[349271764,1737087050507,-1151.64,0.00029999,3]
[349271765,1737087050516,-1151.64,0.00029999,3]
[349271766,1737087050526,-1151.64,0.00029999,3]
[349271767,1737087050536,-1128.1,0.00029999,3]
[349271768,1737087050546,-1128.1,0.00029999,3]
[349271769,1737087050556,-1128.1,0.00029999,3]
[349271770,1737087050566,-683.31,0.00029999,3]
[349271771,1737087050576,-683.31,0.00029999,3]
[349271772,1737087050585,-683.31,0.00029999,3]
[349271773,1737087050594,-619.62,0.00029999,3]
[349271774,1737087050604,-619.62,0.00029999,3]
[349271775,1737087050614,-619.62,0.00029999,3]
[349271776,1737087050624,-2421.4,0.00029999,3]
[349271777,1737087050633,-2421.4,0.00029999,3]
[349271778,1737087050644,-1521.93,0.00029999,3]
[349271779,1737087050653,-1521.93,0.00029999,3]
[349271780,1737087050664,-1521.93,0.00029999,3]
[349271781,1737087050674,-500.0,0.00029999,3]
[349271782,1737087050684,-475.66033781,0.00029999,3]
[349271783,1737087050694,-827.9,0.00029999,3]
[349271784,1737087050704,-827.9,0.00029999,3]
[349271785,1737087050715,-5673.1,0.00029999,3]
[349271786,1737087050725,-827.9,0.00029999,3]
[349271787,1737087050734,-5673.1,0.00029999,3]
[349271788,1737087050744,-5673.1,0.00029999,3]
[349271789,1737087050753,-500.0,0.00029999,3]
[349271790,1737087050763,-500.0,0.00029999,3]
[349271791,1737087050773,-500.0,0.00029999,3]
[349271792,1737087050782,-2052.13,0.00029999,3]
[349271793,1737087050792,-2052.13,0.00029999,3]
[349271794,1737087050801,-2052.13,0.00029999,3]
[349271795,1737087050811,-166.05060381,0.00029999,3]
[349271796,1737087050898,-333.94939619,0.00029999,3]
[349271797,1737087050909,-500.0,0.00029999,3]
[349271798,1737087050918,-1095.69,0.00029999,3]
[349271799,1737087050929,-1095.69,0.00029999,3]
[349271800,1737087050939,-1095.69,0.00029999,3]
[349271801,1737087050949,-1920.48,0.00029999,3]
[349271802,1737087050959,-1920.48,0.00029999,3]
[349271803,1737087050970,-1920.48,0.00029999,3]
[349271804,1737087050980,-33644.1406039,0.0003,5]
[349271805,1737087050991,-415.59156472,0.0003,5]
[349271806,1737087051003,-276.66041014,0.0003,5]
[349271807,1737087051015,-1132.71821487,0.0003,5]
[349271808,1737087051029,-1116.78320645,0.0003,5]
[349271809,1737087051094,-410970.64702132,0.0003,5]
[349271810,1737087051105,-453.21373095,0.0003,5]
[349271811,1737087051117,-705.05984263,0.0003,5]
[349271813,1737087386661,155.71,0.00010137,2]
[349271822,1737087723279,800.0,2.96e-05,10]
[349271823,1737087723301,600.0,2.96e-05,10]
[349271824,1737087723328,13615.47002,2.96e-05,10]
[349271825,1737087955777,201.49365041,6.94e-05,2]
[349271826,1737088025171,-1453.21695282,0.00014888,2]
[349271827,1737088025192,-26.59808771,0.00016712,2]
[349271828,1737088050092,-149.25191229,0.00016712,2]
[349271829,1737088050114,-178.74740521,0.00018,3]
[349271832,1737088081972,146027.32632959,0.0001,2]
[349271833,1737088081997,191954.19096449,0.0001,2]
[349271838,1737088116170,1489.32147909,0.00023,30]
[349271839,1737088116456,700458.10603442,0.00011,2]
[349271843,1737088160092,-374.13139,0.00014925,2]
[349271844,1737088160113,-14882.99608009,0.00015,2]
[349271845,1737088160134,-4171.02447132,0.00015,2]
[349271846,1737088160156,-19994.59976955,0.00015,2]
[349271847,1737088160180,-296.94263211,0.000151,2]
[349271848,1737088160200,-200.0,0.0001634,2]
[349271849,1737088160220,-526.27769378,0.000175,5]
[349271850,1737088160240,-12617.71815306,0.00018,3]
[349271853,1737088167146,-6608.10166558,0.00018,3]
[349271854,1737088167170,-1055.35918842,0.00018,3]
[349271855,1737088172112,-4139.03569299,0.00018,3]
[349271864,1737088231424,-20281.2971691,0.00018,3]
[349271866,1737088231436,-492.18846894,0.00018,3]
[349271868,1737088231447,-2022.6,0.00018,3]
[349271871,1737088231481,-2041.98034978,0.00018,3]
[349271872,1737088231491,-888.86965022,0.00018,2]
[349271873,1737088231593,-245.16781775,0.00018,2]
[349271874,1737088231604,-305.82925926,0.00018,2]
[349271875,1737088231615,-726.3934776,0.00018,2]
[349271876,1737088231625,-5608.64907067,0.00018,2]
[349271877,1737088231635,-747.50399239,0.0002,4]
[349271878,1737088231645,-159.15,0.00020607,2]
[349271879,1737088231656,-1377.15860354,0.00022239,2]
[349271880,1737088231665,-1515.70188,0.00023676,2]
[349271881,1737088231674,-1377.15860352,0.000242,2]
[349271882,1737088231683,-491.5,0.00024521,2]
[349271883,1737088231693,-348.85,0.00024521,2]
[349271884,1737088231702,-1377.15860352,0.00026162,2]
[349271885,1737088231712,-29999.99,0.00026162,2]
[349271886,1737088231721,-166.88,0.00026233,2]
[349271887,1737088231731,-250.0,0.0002634,2]
[349271888,1737088231740,-196.78,0.00026516,2]
[349271889,1737088231749,-256.04,0.00026563,120]
[349271890,1737088231759,-1000.0,0.0002668,2]
[349271891,1737088231768,-1261.0,0.000267,3]
[349271892,1737088231777,-491.5,0.00026784,2]
[349271893,1737088231787,-170.32,0.00026869,2]
[349271894,1737088231797,-1259.36,0.00027123,30]
[349271895,1737088231808,-2574.36805977,0.00027186,2]
[349271896,1737088231818,-745.5427054,0.00027193,2]
[349271897,1737088231828,-1000.0,0.00027197,2]
[349271898,1737088231838,-745.5427054,0.00027202,2]
[349271899,1737088231848,-200.0,0.00027207,2]
[349271900,1737088231858,-2574.36805977,0.00027213,2]
[349271901,1737088231867,-200.0,0.00027219,2]
[349271902,1737088231876,-1567.4523155,0.00027225,2]
[349271903,1737088231886,-2574.36805977,0.00027235,2]
[349271904,1737088231896,-200.0,0.00027235,2]
[349271905,1737088231906,-200.0,0.00027246,2]
[349271906,1737088231915,-1567.4523155,0.00027248,2]
[349271907,1737088231925,-745.5427054,0.00027259,2]
[349271909,1737088231935,-1567.4523155,0.00027265,2]
[349271911,1737088231945,-200.0,0.00027271,2]
[349271912,1737088231954,-198.27210784,0.00027271,2]
[349271913,1737088231966,-1369.18020766,0.00027271,2]
[349271914,1737088231976,-141.69956811,0.00027278,2]
[349271915,1737088231989,-58.30043189,0.00027278,2]
[349271916,1737088231998,-200.0,0.00027278,2]
[349271917,1737088232008,-200.0,0.00027286,2]
[349271918,1737088232017,-54.10272835,0.00027295,2]
[349271919,1737088232029,-691.43997705,0.00027295,2]
[349271920,1737088232038,-832.3388,0.00027297,2]
[349271922,1737088232048,-5000.0,0.00027297,2]
[349271924,1737088232057,-2500.0,0.00027297,2]
[349271926,1737088232067,-157.81537896,0.00027297,2]
[349271927,1737088232076,-218.91325897,0.000273,2]
[349271928,1737088232086,-160.46734814,0.000273,2]
[349271929,1737088232095,-2574.36805977,0.00027301,2]
[349271930,1737088232104,-2574.36805977,0.00027303,2]
[349271931,1737088232113,-2574.36805977,0.00027305,2]
[349271932,1737088232122,-745.5427054,0.00027308,2]
[349271933,1737088232132,-1567.4523155,0.00027318,2]
[349271934,1737088232142,-2574.36805977,0.0002732,2]
[349271935,1737088232151,-2574.36805977,0.00027325,2]
[349271936,1737088232161,-2319.90736238,0.00027338,5]
[349271937,1737088232170,-2319.90736239,0.00027338,5]
[349271938,1737088232181,-745.5427054,0.0002734,2]
[349271939,1737088232191,-1567.4523155,0.00027364,2]
[349271940,1737088232201,-200.0,0.00027368,2]
[349271941,1737088232210,-745.5427054,0.0002737,2]
[349271942,1737088232221,-745.5427054,0.00027371,2]
[349271943,1737088232231,-500.0,0.00027373,2]
[349271944,1737088232241,-1567.4523155,0.0002738,2]
[349271945,1737088232250,-1567.4523155,0.00027381,2]
[349271946,1737088232261,-151.0,0.00027385,2]
[349271947,1737088232270,-276.66203448,0.00027397,30]
[349271948,1737088232279,-150.0,0.00027397,30]
[349271949,1737088232289,-500.0,0.00027397,30]
[349271950,1737088232299,-500.0,0.00027397,3]
[349271951,1737088232308,-500.0,0.00027397,3]
[349271952,1737088232318,-519.61297108,0.00027397,3]
[349271953,1737088232327,-505.12822742,0.00027397,3]
[349271954,1737088232336,-507.4631291,0.00027397,3]
[349271955,1737088232346,-505.7047262,0.00027397,3]
[349271956,1737088232356,-2038.249,0.00027397,16]
[349271957,1737088232365,-157.825,0.00027397,16]
[349271958,1737088232374,-500.0,0.00027397,3]
[349271959,1737088232383,-502.26336959,0.00027397,3]
[349271960,1737088232392,-500.0,0.00027397,3]
[349271961,1737088232402,-500.0,0.00027397,3]
[349271962,1737088232411,-271.15385731,0.00027397,3]
[349271963,1737088232420,-526.14,0.00027397,3]
[349271964,1737088232429,-500.0,0.00027397,3]
[349271965,1737088232439,-500.0,0.00027397,3]
[349271966,1737088232449,-500.0,0.00027397,3]
[349271967,1737088232458,-539.06,0.00027397,3]
[349271968,1737088232467,-500.0,0.00027397,3]
[349271969,1737088232478,-500.0,0.00027397,3]
[349271970,1737088232487,-500.0,0.00027397,3]
[349271971,1737088232496,-500.0,0.00027397,3]
[349271972,1737088232505,-500.0,0.00027397,3]
[349271973,1737088232516,-500.0,0.00027397,3]
[349271974,1737088232525,-500.0,0.00027397,3]
[349271975,1737088232534,-500.0,0.00027397,3]
[349271976,1737088232543,-500.0,0.00027397,3]
[349271977,1737088232552,-500.0,0.00027397,3]
[349271978,1737088232562,-505.19200854,0.00027397,3]
[349271979,1737088232571,-568.10960736,0.00027397,3]
[349271980,1737088232580,-500.0,0.00027397,3]
[349271981,1737088232590,-500.0,0.00027397,3]
[349271982,1737088232599,-500.0,0.00027397,3]
[349271983,1737088232609,-506.86201246,0.00027397,3]
[349271984,1737088232619,-509.45484608,0.00027397,3]
[349271985,1737088232629,-502.16731078,0.00027397,3]
[349271986,1737088232640,-529.99354738,0.00027397,45]
[349271987,1737088232650,-500.0,0.00027397,3]
[349271988,1737088232659,-786.59194082,0.00027397,10]
[349271989,1737088232669,-500.0,0.00027397,3]
[349271990,1737088232678,-518.44205903,0.00027397,3]
[349271991,1737088232688,-500.0,0.00027397,3]
[349271992,1737088232697,-500.0,0.00027397,3]
[349271993,1737088232706,-500.0,0.00027397,3]
[349271994,1737088232715,-500.0,0.00027397,3]
[349271995,1737088232725,-514.14064312,0.00027397,3]
[349271996,1737088232734,-505.55126323,0.00027397,3]
[349271997,1737088232744,-513.58083227,0.00027397,3]
[349271998,1737088232754,-500.0,0.00027397,3]
[349271999,1737088232763,-500.0,0.00027397,3]
[349272000,1737088232772,-515.57399364,0.00027397,3]
[349272001,1737088232781,-554.21,0.00027397,3]
[349272002,1737088232791,-500.0,0.00027397,3]
[349272003,1737088232800,-500.0,0.00027397,3]
[349272004,1737088232810,-528.75864495,0.00027397,3]
[349272005,1737088232819,-500.0,0.00027397,3]
[349272006,1737088232828,-500.0,0.00027397,3]
[349272007,1737088232837,-500.0,0.00027397,3]
[349272008,1737088232847,-500.0,0.00027397,3]
[349272009,1737088232856,-495.0,0.00027397,3]
[349272010,1737088232865,-500.82,0.00027397,3]